fUST/lending_fUST_20240508
["ID","MTS","AMOUNT","RATE_DAILY","PERIOD"]
[326605103,1715133039893,-1088.76,0.00015463,2]
[326605104,1715133039902,-1211.8,0.00015463,2]
[326605105,1715133039912,-500.0,0.00015463,2]
[326605106,1715133039921,-2221.8,0.00015463,2]
[326605107,1715133039930,-1023.41,0.00015463,2]
[326605108,1715133039939,-500.0,0.00015463,2]
[326605109,1715133039949,-11497.92,0.00015463,2]
[326605110,1715133039959,-500.0,0.00015463,2]
[326605111,1715133039969,-500.0,0.00015463,2]
[326605112,1715133039978,-500.0,0.00015463,2]
[326605113,1715133039987,-644.96,0.00015463,2]
[326605114,1715133039996,-3826.14,0.00015463,2]
[326605115,1715133040005,-903.38,0.00015463,2]
[326605116,1715133040015,-500.0,0.00015463,2]
[326605117,1715133040025,-798.89,0.00015463,2]
[326605118,1715133040034,-500.0,0.00015463,2]
[326605119,1715133040044,-500.0,0.00015463,2]
[326605120,1715133040053,-500.0,0.00015463,2]
[326605121,1715133040063,-500.0,0.00015463,2]
[326605122,1715133040072,-500.0,0.00015464,2]
[326605123,1715133040082,-536.03949291,0.00015464,2]
[326605124,1715133040092,-500.0,0.00015464,2]
[326605125,1715133040102,-500.0,0.00015464,2]
[326605126,1715133040111,-500.0,0.00015464,2]
[326605127,1715133040121,-416.52062672,0.00015464,2]
[326605128,1715133040130,-500.0,0.00015464,2]
[326605129,1715133040141,-502.39675708,0.00015464,2]
[326605130,1715133040155,-503.66905891,0.00015464,2]
[326605131,1715133040164,-244.61878013,0.00015464,2]
[326605132,1715133040174,-769.8,0.00015464,2]
[326605133,1715133040185,-503.07661905,0.00015464,2]
[326605134,1715133040195,-500.0,0.00015464,2]
[326605135,1715133040204,-683.17,0.00015464,2]
[326605136,1715133040214,-500.0,0.00015464,2]
[326605137,1715133040224,-1161.53,0.00015464,2]
[326605138,1715133040234,-505.27509672,0.00015464,2]
[326605139,1715133040243,-573.36515402,0.00015464,2]
[326605140,1715133040252,-500.0,0.00015464,2]
[326605141,1715133040262,-502.530519,0.00015464,2]
[326605142,1715133040271,-500.0,0.00015464,2]
[326605143,1715133040280,-500.0,0.00015464,2]
[326605144,1715133040290,-500.0,0.00015464,2]
[326605145,1715133040300,-500.0,0.00015464,2]
[326605146,1715133040310,-500.0,0.00015464,2]
[326605147,1715133040319,-151.0,0.00015464,2]
[326605148,1715133040328,-500.0,0.00015464,2]
[326605149,1715133040338,-500.0,0.00015464,2]
[326605150,1715133040347,-153.751302,0.00015464,2]
[326605151,1715133040357,-151.0,0.00015464,2]
[326605152,1715133040366,-151.0,0.00015464,2]
[326605153,1715133040376,-152.736736,0.00015464,2]
[326605154,1715133040385,-151.0,0.00015464,2]
[326605155,1715133040395,-151.0,0.00015464,2]
[326605156,1715133040405,-500.53904699,0.00015465,2]
[326605157,1715133040415,-162.24108995,0.00015584,2]
[326605158,1715133040424,-306.5617653,0.000156,2]
[326605159,1715133040433,-153.0,0.000157,2]
[326605160,1715133040443,-306.0,0.000157,2]
[326605161,1715133040452,-1806.19284706,0.00015736,2]
[326605162,1715133040461,-470.3104231,0.00015736,2]
[326605163,1715133040470,-899.0893145,0.00015736,2]
[326605164,1715133040480,-1060.87816916,0.00015736,2]
[326605165,1715133040489,-413.57784765,0.00015736,2]
[326605166,1715133040499,-1497.45148866,0.00015736,2]
[326605167,1715133040508,-720.35571559,0.00015736,2]
[326605168,1715133040517,-840.2,0.00015736,2]
[326605169,1715133040527,-500.0,0.00015736,2]
[326605170,1715133040536,-500.0,0.00015736,2]
[326605171,1715133040545,-560.34,0.00015736,2]
[326605172,1715133040554,-500.0,0.00015736,2]
[326605173,1715133040564,-932.86,0.00015736,2]
[326605174,1715133040574,-911.12,0.00015736,2]
[326605175,1715133040583,-1043.36,0.00015736,2]
[326605176,1715133040593,-500.0,0.00015736,2]
[326605177,1715133040602,-500.0,0.00015736,2]
[326605178,1715133040612,-1710.1,0.00015736,2]
[326605179,1715133040622,-151.0,0.00015736,2]
[326605180,1715133040631,-151.0,0.00015736,2]
[326605181,1715133040640,-2079.44,0.00015736,2]
[326605182,1715133040651,-1853.39,0.00015736,2]
[326605183,1715133040660,-3037.29,0.00015736,2]
[326605184,1715133040670,-1589.13,0.00015736,2]
[326605185,1715133040681,-3432.82,0.00015736,2]
[326605186,1715133040690,-500.0,0.00015736,2]
[326605187,1715133040700,-1734.68,0.00015736,2]
[326605188,1715133040711,-500.0,0.00015736,2]
[326605189,1715133040720,-500.0,0.00015736,2]
[326605190,1715133040730,-456.99380937,0.00015736,2]
[326605207,1715133043800,-965.59,0.00015188,2]
[326605210,1715133043809,-965.59,0.00015462,2]
[326605213,1715133043819,-43.00619063,0.00015736,2]
[326605215,1715133043829,-500.0,0.00015736,2]
[326605219,1715133043839,-500.0,0.00015736,2]
[326605223,1715133043849,-154.36380937,0.00015736,2]
[326605227,1715133045254,-2028.71619063,0.00015736,2]
[326605228,1715133045263,-1893.66,0.00015736,2]
[326605229,1715133045273,-965.59,0.00015736,2]
[326605230,1715133045283,-154.9111902,0.00015737,2]
[326605231,1715133045292,-154.79220758,0.00015737,2]
[326605232,1715133045302,-154.84569698,0.00015737,2]
[326605233,1715133045311,-599.47582509,0.00015737,2]
[326605234,1715133045321,-380.78073123,0.00015737,2]
[326605235,1715133045330,-507.99,0.00015737,2]
[326605236,1715133045340,-500.0,0.00015737,2]
[326605237,1715133045350,-500.0,0.00015737,2]
[326605238,1715133045359,-500.0,0.00015737,2]
[326605239,1715133045368,-1100.4,0.00015737,2]
[326605240,1715133045377,-500.0,0.00015737,2]
[326605241,1715133045387,-557.67,0.00015737,2]
[326605242,1715133045396,-538.28,0.00015737,2]
[326605243,1715133045406,-500.0,0.00015737,2]
[326605244,1715133045416,-1088.76,0.00015737,2]
[326605245,1715133045426,-153.581746,0.00015737,2]
[326605246,1715133045435,-1211.8,0.00015737,2]
[326605247,1715133045445,-500.0,0.00015737,2]
[326605248,1715133045455,-2221.8,0.00015737,2]
[326605249,1715133045466,-1023.41,0.00015737,2]
[326605250,1715133045475,-500.0,0.00015737,2]
[326605251,1715133045484,-3511.8570948,0.00015737,2]
[326605261,1715133047637,-500.0,0.00015188,2]
[326605262,1715133047647,-500.0,0.00015462,2]
[326605263,1715133047657,-500.0,0.00015736,2]
[326605264,1715133047666,-463.20161624,0.00015737,2]
[326605265,1715133416484,5000.0,0.000211,9]
[326605266,1715133469539,412.72806023,9.999e-05,2]
[326605277,1715133761516,310.1580464,0.00014188,2]
[326605279,1715133799321,154.76784823,0.00014046,2]
[326605281,1715133817308,223.57357568,0.00014046,2]
[326605536,1715134245845,-414.50694218,0.00015086,2]
[326605537,1715134245854,-404.49054681,0.00015087,2]
[326605538,1715134245865,-470.3104231,0.00015186,2]
[326605539,1715134245875,-720.35571559,0.00015186,2]
[326605540,1715134245886,-1881.78834853,0.00015186,2]
[326605541,1715134245895,-155.26700169,0.00015186,2]
[326605542,1715134245905,-226.00287398,0.00015186,2]
[326605543,1715134245914,-910.29210747,0.00015186,2]
[326605544,1715134245924,-201.26803244,0.00015186,2]
[326605545,1715134245933,-291.89767916,0.00015186,2]
[326605546,1715134245942,-5883.6024627,0.00015186,2]
[326605547,1715134245953,-193.34132073,0.00015186,2]
[326605548,1715134245962,-500.0,0.00015186,2]
[326605549,1715134245971,-500.0,0.00015186,2]
[326605550,1715134245980,-537.0,0.00015186,2]
[326605551,1715134245990,-513.63529583,0.00015186,2]
[326605552,1715134245999,-438.61248861,0.00015186,2]
[326605553,1715134246008,-893.99,0.00015186,2]
[326605554,1715134246017,-999.88,0.00015186,2]
[326605555,1715134246026,-1176.86,0.00015186,2]
[326605556,1715134246037,-504.07902032,0.00015186,2]
[326605557,1715134246046,-500.0,0.00015186,2]
[326605558,1715134246056,-1638.85,0.00015186,2]
[326605559,1715134246065,-1992.8,0.00015186,2]
[326605560,1715134246075,-1776.17,0.00015186,2]
[326605561,1715134246084,-2910.73,0.00015186,2]
[326605562,1715134246094,-1522.92,0.00015186,2]
[326605563,1715134246104,-3289.78,0.00015186,2]
[326605564,1715134246113,-1662.4,0.00015186,2]
[326605565,1715134246122,-500.0,0.00015186,2]
[326605566,1715134246133,-500.0,0.00015186,2]
[326605567,1715134246142,-500.0,0.00015186,2]
[326605568,1715134246151,-500.0,0.00015186,2]
[326605569,1715134246160,-500.0,0.00015186,2]
[326605570,1715134246170,-1781.04,0.00015186,2]
[326605571,1715134246179,-500.0,0.00015186,2]
[326605572,1715134246189,-2001.16,0.00015186,2]
[326605573,1715134246199,-500.0,0.00015186,2]
[326605574,1715134246208,-2807.34,0.00015186,2]
[326605575,1715134246217,-805.19,0.00015186,2]
[326605576,1715134246227,-1048.18,0.00015186,2]
[326605577,1715134246237,-500.0,0.00015186,2]
[326605578,1715134246246,-2036.65,0.00015186,2]
[326605579,1715134246256,-1060.87816916,0.00015187,2]
[326605580,1715134246266,-899.0893145,0.00015187,2]
[326605581,1715134246276,-1497.45148866,0.00015187,2]
[326605582,1715134246286,-500.0,0.00015187,2]
[326605583,1715134246296,-500.0,0.00015187,2]
[326605584,1715134246305,-500.0,0.00015187,2]
[326605585,1715134246314,-500.0,0.00015187,2]
[326605586,1715134246324,-500.0,0.00015187,2]
[326605587,1715134246333,-1008.7,0.00015187,2]
[326605588,1715134246343,-500.0,0.00015187,2]
[326605589,1715134246353,-511.2,0.00015187,2]
[326605590,1715134246362,-500.0,0.00015187,2]
[326605591,1715134246372,-500.0,0.00015187,2]
[326605592,1715134246381,-500.0,0.00015187,2]
[326605593,1715134246391,-500.0,0.00015187,2]
[326605594,1715134246400,-998.03,0.00015187,2]
[326605595,1715134246410,-374.98129136,0.00015187,2]
[326605596,1715134246420,-500.0,0.00015187,2]
[326605597,1715134246429,-938.13,0.00015187,2]
[326605598,1715134246438,-505.444727,0.00015187,2]
[326605599,1715134246449,-501.96826859,0.00015187,2]
[326605600,1715134246458,-10853.21,0.00015187,2]
[326605601,1715134246467,-503.76483216,0.00015187,2]
[326605602,1715134246477,-500.0,0.00015187,2]
[326605603,1715134246486,-501.35773235,0.00015187,2]
[326605604,1715134246496,-500.0,0.00015187,2]
[326605605,1715134246510,-644.96,0.00015187,2]
[326605606,1715134246520,-500.0,0.00015187,2]
[326605607,1715134246529,-500.0,0.00015187,2]
[326605608,1715134246538,-503.65686392,0.00015187,2]
[326605609,1715134246550,-500.0,0.00015187,2]
[326605610,1715134246559,-3826.14,0.00015187,2]
[326605611,1715134246569,-502.68157883,0.00015187,2]
[326605612,1715134246580,-500.14585222,0.00015187,2]
[326605613,1715134246590,-500.0,0.00015187,2]
[326605614,1715134246599,-503.53530209,0.00015187,2]
[326605615,1715134246608,-500.0,0.00015187,2]
[326605616,1715134246618,-903.38,0.00015187,2]
[326605617,1715134246627,-500.0,0.00015187,2]
[326605618,1715134246636,-500.0,0.00015187,2]
[326605619,1715134246646,-217.69931834,0.00015187,2]
[326605620,1715134246655,-501.05568121,0.00015187,2]
[326605621,1715134246664,-798.89,0.00015187,2]
[326605622,1715134246674,-586.83716688,0.00015187,2]
[326605623,1715134246683,-507.19128323,0.00015187,2]
[326605624,1715134246692,-500.0,0.00015187,2]
[326605625,1715134246703,-503.20028029,0.00015187,2]
[326605626,1715134246712,-157.09712412,0.00015187,2]
[326605627,1715134246721,-500.0,0.00015187,2]
[326605628,1715134246731,-504.00090539,0.00015187,2]
[326605629,1715134246740,-309.69631333,0.00015187,2]
[326605630,1715134246750,-500.0,0.00015187,2]
[326605631,1715134246759,-500.0,0.00015187,2]
[326605632,1715134246769,-244.61878013,0.00015188,2]
[326605633,1715134246778,-654.7,0.00015188,2]
[326605634,1715134246787,-505.27509672,0.00015188,2]
[326605635,1715134246799,-573.36515402,0.00015188,2]
[326605636,1715134246809,-500.0,0.00015188,2]
[326605637,1715134246818,-502.13694979,0.00015188,2]
[326605638,1715134246827,-500.0,0.00015188,2]
[326605639,1715134246836,-500.0,0.00015188,2]
[326605640,1715134246846,-500.0,0.00015188,2]
[326605641,1715134246855,-500.0,0.00015188,2]
[326605642,1715134246864,-509.5482416,0.00015188,2]
[326605643,1715134246874,-500.0,0.00015188,2]
[326605644,1715134246883,-412.08463621,0.00015188,2]
[326605645,1715134246895,-500.0,0.00015188,2]
[326605646,1715134246906,-502.84002691,0.00015188,2]
[326605647,1715134246918,-500.0,0.00015188,2]
[326605648,1715134246929,-500.0,0.00015188,2]
[326605649,1715134246941,-502.85675346,0.00015188,2]
[326605650,1715134246955,-502.16686497,0.00015188,2]
[326605651,1715134246967,-500.0,0.00015188,2]
[326605652,1715134246979,-501.02157809,0.00015188,2]
[326605653,1715134246989,-506.63474687,0.00015188,2]
[326605654,1715134246999,-466.92584556,0.00015188,2]
[326605655,1715134247010,-503.10800664,0.00015188,2]
[326605656,1715134247021,-502.05774901,0.00015188,2]
[326605657,1715134247033,-769.8,0.00015188,2]
[326605658,1715134247044,-500.0,0.00015188,2]
[326605659,1715134247055,-500.0,0.00015188,2]
[326605660,1715134247066,-500.0,0.00015188,2]
[326605661,1715134247077,-152.15118119,0.00015188,2]
[326605662,1715134247087,-500.0,0.00015188,2]
[326605663,1715134247099,-503.8366194,0.00015188,2]
[326605664,1715134247110,-313.93071885,0.00015188,2]
[326605665,1715134247122,-500.0,0.00015188,2]
[326605666,1715134247133,-503.09128598,0.00015188,2]
[326605667,1715134247143,-500.0,0.00015188,2]
[326605668,1715134247154,-1161.53,0.00015188,2]
[326605669,1715134247165,-500.0,0.00015188,2]
[326605670,1715134247175,-505.61034041,0.00015188,2]
[326605671,1715134247185,-500.0,0.00015188,2]
[326605672,1715134247196,-252.66240127,0.00015188,2]
[326605673,1715134247207,-500.53904699,0.00015189,2]
[326605674,1715134247218,-500.76805601,0.00015189,2]
[326605675,1715134247229,-404.4905468,0.00015224,2]
[326605676,1715134247240,-404.4905468,0.00015361,2]
[326605677,1715134247250,-500.0,0.0001546,2]
[326605678,1715134247261,-500.0,0.0001546,2]
[326605679,1715134247272,-537.0,0.0001546,2]
[326605680,1715134247283,-893.99,0.0001546,2]
[326605682,1715134247294,-999.88,0.0001546,2]
[326605684,1715134247305,-1176.86,0.0001546,2]
[326605686,1715134247316,-500.0,0.0001546,2]
[326605688,1715134247327,-1638.85,0.0001546,2]
[326605689,1715134247338,-1992.8,0.0001546,2]
[326605690,1715134247349,-1776.17,0.0001546,2]
[326605691,1715134247361,-2910.73,0.0001546,2]
[326605692,1715134247372,-1522.92,0.0001546,2]
[326605693,1715134247384,-3289.78,0.0001546,2]
[326605694,1715134247395,-1662.4,0.0001546,2]
[326605695,1715134247408,-500.0,0.0001546,2]
[326605696,1715134247419,-500.0,0.0001546,2]
[326605697,1715134247430,-500.0,0.0001546,2]
[326605698,1715134247441,-500.0,0.0001546,2]
[326605699,1715134247457,-1781.04,0.0001546,2]
[326605700,1715134247468,-500.0,0.0001546,2]
[326605701,1715134247479,-500.0,0.0001546,2]
[326605702,1715134247492,-2001.16,0.0001546,2]
[326605703,1715134247507,-2807.34,0.0001546,2]
[326605704,1715134247518,-805.19,0.0001546,2]
[326605705,1715134247529,-1048.18,0.0001546,2]
[326605706,1715134247544,-500.0,0.0001546,2]
[326605707,1715134247555,-2036.65,0.0001546,2]
[326605708,1715134247567,-500.0,0.00015461,2]
[326605709,1715134247582,-500.0,0.00015461,2]
[326605710,1715134247593,-500.0,0.00015461,2]
[326605711,1715134247604,-500.0,0.00015461,2]
[326605712,1715134247614,-500.0,0.00015461,2]
[326605713,1715134247623,-1008.7,0.00015461,2]
[326605714,1715134247633,-500.0,0.00015461,2]
[326605715,1715134247643,-511.2,0.00015461,2]
[326605716,1715134247654,-500.0,0.00015461,2]
[326605717,1715134247664,-500.0,0.00015461,2]
[326605718,1715134247675,-361.86394661,0.00015461,2]
[326605719,1715134247688,-500.0,0.00015461,2]
[326605720,1715134247704,-998.03,0.00015461,2]
[326605721,1715134247714,-500.0,0.00015461,2]
[326605722,1715134247723,-938.13,0.00015461,2]
[326605723,1715134247733,-3462.38574129,0.00015461,2]
[326605724,1715134373026,206.73175172,9.999e-05,2]
[326605725,1715134398659,1742.75573722,0.000211,9]
[326605726,1715134748197,931.1,0.00014593,2]
[326605727,1715134748869,931.1,0.00014811,2]
[326605728,1715134817905,154.76784823,0.0001,2]
[326605729,1715134824376,775.9,0.00014662,2]
[326605730,1715134825211,775.9,0.00014874,2]
[326605733,1715134956919,646.6,0.00014661,2]
[326605734,1715134957592,646.6,0.00014873,2]
[326605735,1715135013539,718.7949124,9.999e-05,2]
[326605736,1715135023964,538.9,0.00014661,2]
[326605737,1715135024622,538.9,0.00014873,2]
[326605738,1715135371468,189.28120506,0.00014985,2]
[326605739,1715135421096,449.0,0.00014661,2]
[326605740,1715135421948,449.0,0.00014873,2]
[326605817,1715135439364,-404.49054681,0.00015083,2]
[326605821,1715135439373,-362.69357446,0.00015083,2]
[326605826,1715135439383,-905.11568264,0.00015085,2]
[326605830,1715135439393,-449.0,0.00015086,2]
[326605833,1715135439403,-435.07662337,0.00015087,2]
[326605837,1715135439412,-404.4905468,0.00015152,2]
[326605841,1715135439421,-516.321285,0.00015179,2]
[326605845,1715135439431,-470.3104231,0.00015181,2]
[326605849,1715135439441,-237.55661084,0.00015181,2]
[326605852,1715135439451,-1881.78834853,0.00015181,2]
[326605878,1715135439625,-155.26700169,0.00015181,2]
[326605880,1715135439641,-244.13665793,0.00015182,2]
[326605882,1715135439650,-500.0,0.00015182,2]
[326605884,1715135439659,-500.0,0.00015182,2]
[326605886,1715135439668,-500.0,0.00015182,2]
[326605888,1715135439678,-500.0,0.00015182,2]
[326605890,1715135439687,-974.66,0.00015182,2]
[326605892,1715135439696,-500.0,0.00015182,2]
[326605894,1715135439705,-1278.78,0.00015182,2]
[326605896,1715135439715,-585.24,0.00015182,2]
[326605898,1715135439724,-500.0,0.00015182,2]
[326605900,1715135439734,-504.07902032,0.00015182,2]
[326605902,1715135439744,-500.0,0.00015182,2]
[326605904,1715135439754,-500.0,0.00015182,2]
[326605906,1715135439764,-1790.63,0.00015182,2]
[326605908,1715135439773,-1092.57,0.00015182,2]
[326605910,1715135439783,-2171.74,0.00015182,2]
[326605912,1715135439792,-500.0,0.00015182,2]
[326605914,1715135439803,-1663.89,0.00015182,2]
[326605916,1715135439813,-326.88031331,0.00015182,2]
[326605918,1715135439823,-3445.02,0.00015182,2]
[326605920,1715135439833,-3043.01,0.00015182,2]
[326605922,1715135439843,-500.0,0.00015182,2]
[326605925,1715135439854,-1815.46,0.00015182,2]
[326605927,1715135439864,-500.0,0.00015182,2]
[326605929,1715135439874,-1940.67,0.00015182,2]
[326605930,1715135439884,-500.0,0.00015182,2]
[326605932,1715135439895,-500.0,0.00015182,2]
[326605935,1715135439910,-500.0,0.00015182,2]
[326605936,1715135439919,-2100.05,0.00015182,2]
[326605939,1715135439930,-1944.26,0.00015182,2]
[326605941,1715135439942,-500.0,0.00015182,2]
[326605943,1715135439953,-843.27,0.00015182,2]
[326605945,1715135439964,-3065.43,0.00015182,2]
[326605947,1715135439975,-500.0,0.00015182,2]
[326605949,1715135439986,-500.0,0.00015182,2]
[326605951,1715135439997,-1100.76,0.00015182,2]
[326605953,1715135440008,-500.0,0.00015182,2]
[326605955,1715135440019,-781.25749037,0.00015183,2]
[326605957,1715135440030,-2108.53489126,0.00015183,2]
[326605959,1715135440040,-563.7194373,0.00015183,2]
[326605961,1715135440050,-309.70492923,0.00015183,2]
[326605963,1715135440060,-2158.16581824,0.00015183,2]
[326605965,1715135440071,-154.76784823,0.00015183,2]
[326605967,1715135440081,-1057.88956582,0.00015183,2]
[326605969,1715135440091,-31265.73505526,0.00015183,2]
[326605971,1715135440102,-1627.07080808,0.00015184,2]
[326605973,1715135440113,-155.1005922,0.00015184,2]
[326605975,1715135440122,-1060.87816916,0.00015184,2]
[326605977,1715135440132,-1497.45148866,0.00015184,2]
[326605979,1715135440142,-899.0893145,0.00015184,2]
[326605981,1715135440152,-207.04612451,0.00015184,2]
[326605983,1715135440162,-193.34132073,0.00015184,2]
[326605985,1715135440171,-201.26803244,0.00015184,2]
[326605987,1715135440181,-5883.6024627,0.00015184,2]
[326605989,1715135440191,-291.89767916,0.00015184,2]
[326605991,1715135440201,-910.29210747,0.00015184,2]
[326605993,1715135440211,-500.0,0.00015184,2]
[326605995,1715135440222,-169.79,0.00015184,2]
[326605997,1715135440237,-500.0,0.00015184,2]
[326605999,1715135440248,-449.1376245,0.00015184,2]
[326606001,1715135440259,-500.0,0.00015184,2]
[326606003,1715135440270,-1055.79,0.00015184,2]
[326606005,1715135440280,-535.06,0.00015184,2]
[326606007,1715135440291,-500.0,0.00015184,2]
[326606009,1715135440301,-500.0,0.00015184,2]
[326606011,1715135440311,-516.64,0.00015184,2]
[326606013,1715135440320,-524.24876244,0.00015184,2]
[326606015,1715135440331,-500.0,0.00015184,2]
[326606017,1715135440341,-267.33421667,0.00015184,2]
[326606018,1715135440351,-513.357965,0.00015184,2]
[326606020,1715135440361,-500.0,0.00015184,2]
[326606022,1715135440371,-500.0,0.00015184,2]
[326606024,1715135440381,-998.03,0.00015184,2]
[326606026,1715135440391,-508.79653634,0.00015184,2]
[326606028,1715135440401,-500.0,0.00015184,2]
[326606030,1715135440411,-1612.34,0.00015184,2]
[326606032,1715135440420,-963.48,0.00015184,2]
[326606034,1715135440431,-500.0,0.00015184,2]
[326606036,1715135440441,-500.0,0.00015184,2]
[326606038,1715135440451,-11703.87,0.00015184,2]
[326606040,1715135440464,-501.46,0.00015184,2]
[326606042,1715135440474,-500.0,0.00015184,2]
[326606044,1715135440483,-672.98,0.00015184,2]
[326606046,1715135440493,-942.63,0.00015184,2]
[326606048,1715135440503,-3992.53,0.00015184,2]
[326606050,1715135440513,-500.0,0.00015184,2]
[326606052,1715135440522,-154.85607246,0.00015184,2]
[326606054,1715135440532,-500.0,0.00015184,2]
[326606056,1715135440541,-833.61,0.00015184,2]
[326606058,1715135440551,-500.0,0.00015184,2]
[326606060,1715135440561,-500.0,0.00015184,2]
[326606062,1715135440571,-172.15575758,0.00015184,2]
[326606064,1715135440582,-500.0,0.00015184,2]
[326606066,1715135440592,-500.0,0.00015185,2]
[326606068,1715135440602,-500.0,0.00015185,2]
[326606070,1715135440613,-501.65646852,0.00015185,2]
[326606072,1715135440622,-510.21530336,0.00015185,2]
[326606074,1715135440632,-501.44075826,0.00015185,2]
[326606076,1715135440642,-528.6,0.00015185,2]
[326606078,1715135440651,-273.01820624,0.00015185,2]
[326606080,1715135440661,-500.0,0.00015185,2]
[326606082,1715135440671,-500.0,0.00015185,2]
[326606084,1715135440681,-500.0,0.00015185,2]
[326606086,1715135440691,-501.44373547,0.00015185,2]
[326606088,1715135440701,-500.89614398,0.00015185,2]
[326606090,1715135440710,-500.0,0.00015185,2]
[326606092,1715135440721,-501.22403637,0.00015185,2]
[326606094,1715135440730,-516.71220776,0.00015185,2]
[326606096,1715135440740,-514.09446684,0.00015185,2]
[326606098,1715135440750,-500.0,0.00015185,2]
[326606100,1715135440760,-515.12890509,0.00015185,2]
[326606102,1715135440769,-500.0,0.00015185,2]
[326606104,1715135440779,-502.31678219,0.00015185,2]
[326606106,1715135440789,-297.59484406,0.00015185,2]
[326606108,1715135440799,-500.0,0.00015185,2]
[326606110,1715135440809,-501.27590992,0.00015185,2]
[326606112,1715135440818,-500.0,0.00015185,2]
[326606114,1715135440829,-323.92383999,0.00015185,2]
[326606116,1715135440839,-485.58752744,0.00015185,2]
[326606118,1715135440848,-500.0,0.00015185,2]
[326606120,1715135440858,-501.99453995,0.00015185,2]
[326606122,1715135440867,-500.0,0.00015185,2]
[326606124,1715135440877,-500.52797849,0.00015185,2]
[326606125,1715135440887,-500.0,0.00015185,2]
[326606126,1715135440897,-500.0,0.00015185,2]
[326606127,1715135440911,-501.80275205,0.00015185,2]
[326606128,1715135440921,-506.04989335,0.00015185,2]
[326606129,1715135440932,-502.221224,0.00015185,2]
[326606130,1715135440943,-503.4661903,0.00015185,2]
[326606131,1715135440952,-501.3256857,0.00015185,2]
[326606132,1715135440963,-502.02516049,0.00015185,2]
[326606133,1715135440973,-500.8145223,0.00015185,2]
[326606134,1715135440984,-500.0,0.00015185,2]
[326606135,1715135440994,-501.63976391,0.00015185,2]
[326606136,1715135441003,-500.0,0.00015185,2]
[326606138,1715135441013,-196.33538884,0.00015185,2]
[326606139,1715135441023,-502.23901325,0.00015185,2]
[326606141,1715135441032,-506.29563737,0.00015185,2]
[326606143,1715135441041,-501.12423204,0.00015185,2]
[326606145,1715135441051,-502.53696505,0.00015185,2]
[326606147,1715135441060,-501.05568121,0.00015185,2]
[326606149,1715135441070,-500.0,0.00015185,2]
[326606151,1715135441079,-500.0,0.00015185,2]
[326606153,1715135441089,-586.83716688,0.00015185,2]
[326606155,1715135441098,-503.43868415,0.00015185,2]
[326606157,1715135441107,-157.09712412,0.00015185,2]
[326606159,1715135441117,-507.19128323,0.00015185,2]
[326606161,1715135441126,-503.20028029,0.00015185,2]
[326606163,1715135441136,-505.81082302,0.00015185,2]
[326606165,1715135441145,-502.08066567,0.00015185,2]
[326606167,1715135441155,-501.99045394,0.00015185,2]
[326606169,1715135441164,-502.8073248,0.00015185,2]
[326606171,1715135441174,-500.0,0.00015185,2]
[326606173,1715135441183,-228.44170514,0.00015185,2]
[326606175,1715135441193,-683.17,0.00015185,2]
[326606177,1715135441202,-501.11946726,0.00015185,2]
[326606179,1715135441211,-500.0,0.00015185,2]
[326606180,1715135441220,-500.0,0.00015185,2]
[326606182,1715135441230,-151.0,0.00015185,2]
[326606185,1715135441240,-624.7688326,0.00015185,2]
[326606187,1715135441251,-151.0,0.00015185,2]
[326606188,1715135441261,-504.5022126,0.00015185,2]